,Portfolio,Expense Area,Cost Centre,Expense Type,Account Code,Amount,Supplier Name,SupplierId,Pay Date,Transaction No.
INSERTED DETAIL,Resources & Corporate Governance ,Grounds Maintenance,WGM00,Personal Protective Clothing,0340,661.20,Arco Limited,100015,14/11/2013,10191827
INSERTED DETAIL,Resources & Corporate Governance ,Domestic Waste Collection,WWC00,Vehicle Repair and Maintenance,0200,41.42,Arrow Engineering Supply Co Ltd,100016,14/11/2013,10193620
INSERTED DETAIL,Resources & Corporate Governance ,Garage Internal,WVR01,Materials,0303,12.00,Arrow Engineering Supply Co Ltd,100016,14/11/2013,10193620
INSERTED DETAIL,Resources & Corporate Governance,Housing Maintenance,WHM00,Tools,0304,12.49,Arrow Engineering Supply Co Ltd,100016,14/11/2013,10193620
INSERTED DETAIL,Resources & Corporate Governance ,Garage Internal,WVR01,Tools,0304,608.30,Arrow Engineering Supply Co Ltd,100016,14/11/2013,10193620
INSERTED DETAIL,Sustainable Inclusive Communities,Housing Options Team,HOT00,Rents,0140,1178.00,Alma Lodge Hotel,100026,21/11/2013,10193306
INSERTED DETAIL,Sustainable Inclusive Communities,Housing Options Team,HOT00,Rents,0140,874.00,Alma Lodge Hotel,100026,07/11/2013,10193359
INSERTED DETAIL,Housing Revenue Account ,Unplanned Maintenance and Repair,UMR00,R&M External Contractors,0100,65.76,AWM Electrical Contractors Ltd,100051,07/11/2013,10193129
INSERTED DETAIL,Housing Revenue Account ,Repairs and Maintenance - Void works,UMR09,R&M External Contractors,0100,732.08,AWM Electrical Contractors Ltd,100051,07/11/2013,10193129
INSERTED DETAIL,Housing Revenue Account ,Unplanned Maintenance and Repair,UMR00,R&M External Contractors,0100,1032.56,AWM Electrical Contractors Ltd,100051,14/11/2013,10193133
INSERTED DETAIL,Housing Revenue Account ,Repairs and Maintenance - Void works,UMR09,R&M External Contractors,0100,2148.96,AWM Electrical Contractors Ltd,100051,14/11/2013,10193133
INSERTED DETAIL,Housing Revenue Account ,Unplanned Maintenance and Repair,UMR00,R&M External Contractors,0100,2333.16,AWM Electrical Contractors Ltd,100051,14/11/2013,10193134
INSERTED DETAIL,Housing Revenue Account ,Repairs and Maintenance - Void works,UMR09,R&M External Contractors,0100,660.94,AWM Electrical Contractors Ltd,100051,14/11/2013,10193134
INSERTED DETAIL,Housing Revenue Account ,Unplanned Maintenance and Repair,UMR00,R&M External Contractors,0100,420.52,AWM Electrical Contractors Ltd,100051,14/11/2013,10193876
INSERTED DETAIL,Housing Revenue Account ,Unplanned Maintenance and Repair,UMR00,R&M External Contractors,0100,275.36,AWM Electrical Contractors Ltd,100051,21/11/2013,10193877
INSERTED DETAIL,Housing Revenue Account ,Repairs and Maintenance - Void works,UMR09,R&M External Contractors,0100,1231.30,AWM Electrical Contractors Ltd,100051,21/11/2013,10193877
INSERTED DETAIL,Housing Revenue Account ,Unplanned Maintenance and Repair,UMR00,R&M External Contractors,0100,2999.48,AWM Electrical Contractors Ltd,100051,21/11/2013,10193908
INSERTED DETAIL,Housing Revenue Account ,Repairs and Maintenance - Void works,UMR09,R&M External Contractors,0100,406.00,AWM Electrical Contractors Ltd,100051,21/11/2013,10193908
INSERTED DETAIL,Capital Program ,Fire Risk Assessment,HCE18,Capital Contract Payments,5000,68.77,AWM Electrical Contractors Ltd,100051,21/11/2013,10193908
INSERTED DETAIL,Capital Program ,Rewiring,HCE20,Capital Contract Payments,5000,1884.84,AWM Electrical Contractors Ltd,100051,21/11/2013,10193908
INSERTED DETAIL,Housing Revenue Account ,Unplanned Maintenance and Repair,UMR00,R&M External Contractors,0100,4060.82,AWM Electrical Contractors Ltd,100051,14/11/2013,10194120
INSERTED DETAIL,Housing Revenue Account ,Unplanned Maintenance and Repair,UMR00,R&M External Contractors,0100,603.22,AWM Electrical Contractors Ltd,100051,14/11/2013,10194121
INSERTED DETAIL,Capital Program ,Fire Risk Assessment,HCE18,Capital Contract Payments,5000,128.70,AWM Electrical Contractors Ltd,100051,14/11/2013,10194121
INSERTED DETAIL,Housing Revenue Account ,Unplanned Maintenance and Repair,UMR00,R&M External Contractors,0100,345.90,AWM Electrical Contractors Ltd,100051,21/11/2013,10194451
INSERTED DETAIL,Capital Program ,Fire Risk Assessment,HCE18,Capital Contract Payments,5000,171.60,AWM Electrical Contractors Ltd,100051,21/11/2013,10194451
INSERTED DETAIL,Housing Revenue Account ,Unplanned Maintenance and Repair,UMR00,R&M External Contractors,0100,504.49,AWM Electrical Contractors Ltd,100051,21/11/2013,10194455
INSERTED DETAIL,Capital Program ,Kitchen Modifications,HIK10,Capital Contract Payments,5000,9191.44,A C E Carpentry & Joinery Contractors Ltd,100085,14/11/2013,10193503
INSERTED DETAIL,Capital Program ,Kitchen Modifications,HIK10,Capital Contract Payments,5000,9191.44,A C E Carpentry & Joinery Contractors Ltd,100085,14/11/2013,10193867
INSERTED DETAIL,Capital Program ,Kitchen Modifications,HIK10,Capital Contract Payments,5000,3233.00,A C E Carpentry & Joinery Contractors Ltd,100085,14/11/2013,10193909
INSERTED DETAIL,Capital Program ,Kitchen Modifications,HIK10,Capital Contract Payments,5000,9191.44,A C E Carpentry & Joinery Contractors Ltd,100085,21/11/2013,10194163
INSERTED DETAIL,Capital Program ,Kitchen Modifications,HIK10,Capital Contract Payments,5000,1871.00,A C E Carpentry & Joinery Contractors Ltd,100085,21/11/2013,10194453
INSERTED DETAIL,Capital Program ,Kitchen Modifications,HIK10,Capital Contract Payments,5000,9191.44,A C E Carpentry & Joinery Contractors Ltd,100085,28/11/2013,10194465
INSERTED DETAIL,Capital Program ,Kitchen Modifications,HIK10,Capital Contract Payments,5000,890.00,A C E Carpentry & Joinery Contractors Ltd,100085,28/11/2013,10194588
INSERTED DETAIL,Resources & Corporate Governance ,General Administration,WAD00,Conference & Seminar Fees,0401,498.00,Association For Public Service Excellence,100130,28/11/2013,10194484
INSERTED DETAIL,Economy Development & Culture,Car Parks General,CPK01,Maintenance of Equipment,0301,850.00,Cale Briparc Ltd,100158,21/11/2013,10194320
INSERTED DETAIL,Economy Development & Culture,James St. Multi-storey Car Park,CPK02,Maintenance of Equipment,0301,829.35,Cale Briparc Ltd,100158,28/11/2013,10194468
INSERTED DETAIL,Resources & Corporate Governance ,Council Tax and NNDR Collection,CTX01,External Contractor & Operator,0742,62.36,Bristow & Sutor,100159,07/11/2013,10193267
INSERTED DETAIL,Resources & Corporate Governance ,Council Tax and NNDR Collection,CTX01,External Contractor & Operator,0742,73.50,Bristow & Sutor,100159,07/11/2013,10193734
INSERTED DETAIL,Resources & Corporate Governance ,Town Hall,OFF00,R&M External Contractors,0100,75.98,British Telecommunications Plc,100161,07/11/2013,10192696
INSERTED DETAIL,Housing Revenue Account ,Control Centre (HRA),CCE00,New Equipment,0300,54.15,British Telecommunications Plc,100161,07/11/2013,10192696
INSERTED DETAIL,Economy Development & Culture,Art Gallery and Museum,AGM00,Telephone Expenses,0371,210.97,British Telecommunications Plc,100161,07/11/2013,10192696
INSERTED DETAIL,Economy Development & Culture,The Benn Hall,BHL00,Telephone Expenses,0371,38.08,British Telecommunications Plc,100161,07/11/2013,10192696
INSERTED DETAIL,Resources & Corporate Governance ,Customer and Information Strategy,CIS10,Telephone Expenses,0371,978.70,British Telecommunications Plc,100161,07/11/2013,10192696
INSERTED DETAIL,Resources & Corporate Governance ,Civic Responsibilities,CIV00,Telephone Expenses,0371,43.27,British Telecommunications Plc,100161,07/11/2013,10192696
INSERTED DETAIL,Economy Development & Culture,Car Parks General,CPK01,Telephone Expenses,0371,19.19,British Telecommunications Plc,100161,07/11/2013,10192696
INSERTED DETAIL,Resources & Corporate Governance ,Council Tax and NNDR Collection,CTX01,Telephone Expenses,0371,225.00,British Telecommunications Plc,100161,07/11/2013,10192696
INSERTED DETAIL,Economy Development & Culture,Decrim. of Car Parking on street parking,DPE02,Telephone Expenses,0371,76.78,British Telecommunications Plc,100161,07/11/2013,10192696
INSERTED DETAIL,Sustainable Inclusive Communities,Housing Benefit Administration,HBA00,Telephone Expenses,0371,37.89,British Telecommunications Plc,100161,07/11/2013,10192696
INSERTED DETAIL,Resources & Corporate Governance ,Town Hall,OFF00,Telephone Expenses,0371,37.89,British Telecommunications Plc,100161,07/11/2013,10192696
INSERTED DETAIL,Sustainable Environment ,Parks,PKS00,Telephone Expenses,0371,50.90,British Telecommunications Plc,100161,07/11/2013,10192696
INSERTED DETAIL,Resources & Corporate Governance ,Central Telephone Service,TEL00,Telephone Expenses,0371,37.89,British Telecommunications Plc,100161,07/11/2013,10192696
INSERTED DETAIL,Economy Development & Culture,Visitor Centre,VSC00,Telephone Expenses,0371,75.98,British Telecommunications Plc,100161,07/11/2013,10192696
INSERTED DETAIL,Sustainable Environment ,Grass Cutting,PKS13,External Contractor & Operator,0742,2960.00,Binley Woods Parish Council,100183,21/11/2013,10194168
INSERTED DETAIL,Economy Development & Culture,General Highways Services,HIG00,External Contractor & Operator,0742,3765.52,Barcham Trees,100195,21/11/2013,10194084
INSERTED DETAIL,Housing Revenue Account ,Control Centre CCTV,CCE01,Maintenance of Equipment,0301,5486.25,Barron McCann Ltd,100248,07/11/2013,10193544
INSERTED DETAIL,Housing Revenue Account ,Unplanned Maintenance and Repair,UMR00,R&M External Contractors,0100,1200.32,Barron McCann Ltd,100248,14/11/2013,10193879
INSERTED DETAIL,Capital Program ,Fire Risk Assessment,HCE18,Capital Contract Payments,5000,1.00,Barron McCann Ltd,100248,14/11/2013,10193879
INSERTED DETAIL,Resources & Corporate Governance ,Domestic Waste Collection,WWC00,Vehicle Repair and Maintenance,0200,2795.00,Charles Watts Engineering Ltd,100302,14/11/2013,10193554
INSERTED DETAIL,Resources & Corporate Governance,Housing Maintenance,WHM00,Contract Hire,0220,360.00,Clements Plant & Tool Hire Ltd,100309,28/11/2013,10193608
INSERTED DETAIL,Resources & Corporate Governance ,WSU Depot,WDP00,Messing Facilities,0332,360.00,Clements Plant & Tool Hire Ltd,100309,28/11/2013,10193608
INSERTED DETAIL,Resources & Corporate Governance,Housing Maintenance,WHM00,External Contractor & Operator,0742,558.46,Cwikskip (Tailby Brack Ltd),100325,07/11/2013,10192598
INSERTED DETAIL,Resources & Corporate Governance,Housing Maintenance,WHM00,External Contractor & Operator,0742,516.68,Cwikskip (Tailby Brack Ltd),100325,28/11/2013,10193775
INSERTED DETAIL,Resources & Corporate Governance ,IT Procurement,CMP00,IT Capital Expenditure,5025,7740.00,Stone Computers,100390,07/11/2013,10193595
INSERTED DETAIL,Sustainable Environment ,Clinical Waste,REF04,External Contractor & Operator,0742,515.49,OCS Group UK Ltd t/a Cannon,100436,14/11/2013,10193819
INSERTED DETAIL,Sustainable Environment ,Clinical Waste,REF04,External Contractor & Operator,0742,522.64,OCS Group UK Ltd t/a Cannon,100436,14/11/2013,10193821
INSERTED DETAIL,Sustainable Environment ,Clinical Waste,REF04,External Contractor & Operator,0742,529.36,OCS Group UK Ltd t/a Cannon,100436,14/11/2013,10193954
INSERTED DETAIL,Sustainable Environment ,Clinical Waste,REF04,External Contractor & Operator,0742,450.40,OCS Group UK Ltd t/a Cannon,100436,14/11/2013,10193958
INSERTED DETAIL,Sustainable Environment,Regulatory Services,REG00,Other Miscellaneous Expenses,0444,1500.00,Heart Of England Co-operative Society Ltd,100479,21/11/2013,10194198
INSERTED DETAIL,Economy Development & Culture,AGM Exhibitions/Outreach,AGM02,Other Miscellaneous Expenses,0444,750.00,C'Art - Art Transport Ltd,100487,28/11/2013,10194480
INSERTED DETAIL,Resources & Corporate Governance ,Domestic Waste Collection,WWC00,Vehicle Repair and Maintenance,0200,709.71,Dennis Eagle Ltd,100559,21/11/2013,10193633
INSERTED DETAIL,Resources & Corporate Governance ,Domestic Waste Collection,WWC00,Vehicle Repair and Maintenance,0200,1269.12,Dennis Eagle Ltd,100559,28/11/2013,10194417
INSERTED DETAIL,Capital Program ,Disabled Adaptations,HCR01,Capital Contract Payments,5000,8400.00,JADA Building & Maintenance Services Ltd,100583,07/11/2013,10193512
INSERTED DETAIL,Capital Program ,Bathroom Modifications,HIS01,Capital Contract Payments,5000,3277.00,JADA Building & Maintenance Services Ltd,100583,07/11/2013,10193512
INSERTED DETAIL,Capital Program ,Bathroom Modifications,HIS01,Capital Contract Payments,5000,9980.00,JADA Building & Maintenance Services Ltd,100583,14/11/2013,10193871
INSERTED DETAIL,Resources & Corporate Governance,Corporate Property Central Utilities,CPA02,Gas,0131,1223.66,ESPO,100641,21/11/2013,10194113
INSERTED DETAIL,Resources & Corporate Governance ,WSU Depot,WDP00,Gas,0131,565.01,ESPO,100641,21/11/2013,10194114
INSERTED DETAIL,Resources & Corporate Governance,Corporate Property Central Utilities,CPA02,Gas,0131,1412.05,ESPO,100641,21/11/2013,10194117
INSERTED DETAIL,Resources & Corporate Governance,Housing Maintenance,WHM00,Agency Staff,0003,426.98,First Personnel Group Plc,100807,14/11/2013,10193980
INSERTED DETAIL,Resources & Corporate Governance,Housing Maintenance,WHM00,Agency Staff,0003,426.98,First Personnel Group Plc,100807,21/11/2013,10194154
INSERTED DETAIL,Resources & Corporate Governance,Housing Maintenance,WHM00,Agency Staff,0003,1049.05,First Personnel Group Plc,100807,28/11/2013,10194634
INSERTED DETAIL,Capital Program ,Fire Risk Assessment,HCE18,Capital Contract Payments,5000,2237.57,Nationwide Windows Ltd,100808,21/11/2013,10194254
INSERTED DETAIL,Capital Program ,Fire Risk Assessment,HCE18,Capital Contract Payments,5000,2237.57,Nationwide Windows Ltd,100808,21/11/2013,10194255
INSERTED DETAIL,Capital Program ,Fire Risk Assessment,HCE18,Capital Contract Payments,5000,2237.57,Nationwide Windows Ltd,100808,21/11/2013,10194256
INSERTED DETAIL,Capital Program ,Fire Risk Assessment,HCE18,Capital Contract Payments,5000,2237.57,Nationwide Windows Ltd,100808,21/11/2013,10194257
INSERTED DETAIL,Capital Program ,Fire Risk Assessment,HCE18,Capital Contract Payments,5000,2237.57,Nationwide Windows Ltd,100808,21/11/2013,10194258
INSERTED DETAIL,Capital Program ,Fire Risk Assessment,HCE18,Capital Contract Payments,5000,2237.57,Nationwide Windows Ltd,100808,21/11/2013,10194259
INSERTED DETAIL,Capital Program ,Fire Risk Assessment,HCE18,Capital Contract Payments,5000,2237.57,Nationwide Windows Ltd,100808,21/11/2013,10194260
INSERTED DETAIL,Capital Program ,Fire Risk Assessment,HCE18,Capital Contract Payments,5000,2237.57,Nationwide Windows Ltd,100808,21/11/2013,10194261
INSERTED DETAIL,Capital Program ,Fire Risk Assessment,HCE18,Capital Contract Payments,5000,2237.57,Nationwide Windows Ltd,100808,21/11/2013,10194262
INSERTED DETAIL,Capital Program ,Fire Risk Assessment,HCE18,Capital Contract Payments,5000,2237.57,Nationwide Windows Ltd,100808,21/11/2013,10194263
INSERTED DETAIL,Capital Program ,Fire Risk Assessment,HCE18,Capital Contract Payments,5000,2237.57,Nationwide Windows Ltd,100808,21/11/2013,10194264
INSERTED DETAIL,Capital Program ,Fire Risk Assessment,HCE18,Capital Contract Payments,5000,2237.57,Nationwide Windows Ltd,100808,21/11/2013,10194265
INSERTED DETAIL,Capital Program ,Fire Risk Assessment,HCE18,Capital Contract Payments,5000,2237.57,Nationwide Windows Ltd,100808,21/11/2013,10194266
INSERTED DETAIL,Capital Program ,Fire Risk Assessment,HCE18,Capital Contract Payments,5000,2237.57,Nationwide Windows Ltd,100808,21/11/2013,10194267
INSERTED DETAIL,Capital Program ,Fire Risk Assessment,HCE18,Capital Contract Payments,5000,2237.57,Nationwide Windows Ltd,100808,21/11/2013,10194268
INSERTED DETAIL,Capital Program ,Fire Risk Assessment,HCE18,Capital Contract Payments,5000,2237.57,Nationwide Windows Ltd,100808,21/11/2013,10194269
INSERTED DETAIL,Capital Program ,Fire Risk Assessment,HCE18,Capital Contract Payments,5000,2237.57,Nationwide Windows Ltd,100808,21/11/2013,10194270
INSERTED DETAIL,Capital Program ,Fire Risk Assessment,HCE18,Capital Contract Payments,5000,2237.57,Nationwide Windows Ltd,100808,21/11/2013,10194271
INSERTED DETAIL,Capital Program ,Fire Risk Assessment,HCE18,Capital Contract Payments,5000,2237.57,Nationwide Windows Ltd,100808,21/11/2013,10194272
INSERTED DETAIL,Capital Program ,Fire Risk Assessment,HCE18,Capital Contract Payments,5000,2237.57,Nationwide Windows Ltd,100808,21/11/2013,10194273
INSERTED DETAIL,Capital Program ,Fire Risk Assessment,HCE18,Capital Contract Payments,5000,2237.57,Nationwide Windows Ltd,100808,21/11/2013,10194274
INSERTED DETAIL,Capital Program ,Fire Risk Assessment,HCE18,Capital Contract Payments,5000,2237.57,Nationwide Windows Ltd,100808,21/11/2013,10194275
INSERTED DETAIL,Capital Program ,Fire Risk Assessment,HCE18,Capital Contract Payments,5000,2237.57,Nationwide Windows Ltd,100808,21/11/2013,10194276
INSERTED DETAIL,Capital Program ,Fire Risk Assessment,HCE18,Capital Contract Payments,5000,2237.57,Nationwide Windows Ltd,100808,21/11/2013,10194277
INSERTED DETAIL,Capital Program ,Fire Risk Assessment,HCE18,Capital Contract Payments,5000,2237.57,Nationwide Windows Ltd,100808,21/11/2013,10194278
INSERTED DETAIL,Capital Program ,Fire Risk Assessment,HCE18,Capital Contract Payments,5000,2237.57,Nationwide Windows Ltd,100808,21/11/2013,10194279
INSERTED DETAIL,Capital Program ,Fire Risk Assessment,HCE18,Capital Contract Payments,5000,2237.57,Nationwide Windows Ltd,100808,21/11/2013,10194280
INSERTED DETAIL,Capital Program ,Fire Risk Assessment,HCE18,Capital Contract Payments,5000,2237.57,Nationwide Windows Ltd,100808,21/11/2013,10194281
INSERTED DETAIL,Capital Program ,Fire Risk Assessment,HCE18,Capital Contract Payments,5000,2237.57,Nationwide Windows Ltd,100808,21/11/2013,10194282
INSERTED DETAIL,Capital Program ,Fire Risk Assessment,HCE18,Capital Contract Payments,5000,2237.57,Nationwide Windows Ltd,100808,21/11/2013,10194283
INSERTED DETAIL,Capital Program ,Fire Risk Assessment,HCE18,Capital Contract Payments,5000,2237.57,Nationwide Windows Ltd,100808,21/11/2013,10194284
INSERTED DETAIL,Capital Program ,Fire Risk Assessment,HCE18,Capital Contract Payments,5000,2237.57,Nationwide Windows Ltd,100808,21/11/2013,10194285
INSERTED DETAIL,Capital Program ,Fire Risk Assessment,HCE18,Capital Contract Payments,5000,2237.57,Nationwide Windows Ltd,100808,21/11/2013,10194286
INSERTED DETAIL,Capital Program ,Fire Risk Assessment,HCE18,Capital Contract Payments,5000,2237.57,Nationwide Windows Ltd,100808,21/11/2013,10194287
INSERTED DETAIL,Capital Program ,Fire Risk Assessment,HCE18,Capital Contract Payments,5000,2237.57,Nationwide Windows Ltd,100808,21/11/2013,10194288
INSERTED DETAIL,Capital Program ,Fire Risk Assessment,HCE18,Capital Contract Payments,5000,2237.57,Nationwide Windows Ltd,100808,21/11/2013,10194289
INSERTED DETAIL,Capital Program ,Fire Risk Assessment,HCE18,Capital Contract Payments,5000,2237.57,Nationwide Windows Ltd,100808,21/11/2013,10194290
INSERTED DETAIL,Capital Program ,Fire Risk Assessment,HCE18,Capital Contract Payments,5000,2237.57,Nationwide Windows Ltd,100808,21/11/2013,10194291
INSERTED DETAIL,Capital Program ,Fire Risk Assessment,HCE18,Capital Contract Payments,5000,2237.57,Nationwide Windows Ltd,100808,21/11/2013,10194292
INSERTED DETAIL,Capital Program ,Fire Risk Assessment,HCE18,Capital Contract Payments,5000,2237.57,Nationwide Windows Ltd,100808,21/11/2013,10194293
INSERTED DETAIL,Capital Program ,Fire Risk Assessment,HCE18,Capital Contract Payments,5000,2237.57,Nationwide Windows Ltd,100808,21/11/2013,10194294
INSERTED DETAIL,Capital Program ,Fire Risk Assessment,HCE18,Capital Contract Payments,5000,2237.57,Nationwide Windows Ltd,100808,21/11/2013,10194295
INSERTED DETAIL,Capital Program ,Fire Risk Assessment,HCE18,Capital Contract Payments,5000,2237.57,Nationwide Windows Ltd,100808,21/11/2013,10194296
INSERTED DETAIL,Capital Program ,Fire Risk Assessment,HCE18,Capital Contract Payments,5000,2237.57,Nationwide Windows Ltd,100808,21/11/2013,10194297
INSERTED DETAIL,Capital Program ,Fire Risk Assessment,HCE18,Capital Contract Payments,5000,2237.57,Nationwide Windows Ltd,100808,21/11/2013,10194298
INSERTED DETAIL,Capital Program ,Fire Risk Assessment,HCE18,Capital Contract Payments,5000,2237.57,Nationwide Windows Ltd,100808,21/11/2013,10194299
INSERTED DETAIL,Capital Program ,Fire Risk Assessment,HCE18,Capital Contract Payments,5000,2237.57,Nationwide Windows Ltd,100808,21/11/2013,10194300
INSERTED DETAIL,Capital Program ,Fire Risk Assessment,HCE18,Capital Contract Payments,5000,2237.57,Nationwide Windows Ltd,100808,21/11/2013,10194301
INSERTED DETAIL,Capital Program ,Fire Risk Assessment,HCE18,Capital Contract Payments,5000,2237.57,Nationwide Windows Ltd,100808,21/11/2013,10194302
INSERTED DETAIL,Capital Program ,Fire Risk Assessment,HCE18,Capital Contract Payments,5000,2237.57,Nationwide Windows Ltd,100808,21/11/2013,10194303
INSERTED DETAIL,Capital Program ,Fire Risk Assessment,HCE18,Capital Contract Payments,5000,2237.57,Nationwide Windows Ltd,100808,21/11/2013,10194304
INSERTED DETAIL,Capital Program ,Fire Risk Assessment,HCE18,Capital Contract Payments,5000,2237.57,Nationwide Windows Ltd,100808,21/11/2013,10194305
INSERTED DETAIL,Capital Program ,Fire Risk Assessment,HCE18,Capital Contract Payments,5000,2237.57,Nationwide Windows Ltd,100808,21/11/2013,10194306
INSERTED DETAIL,Resources & Corporate Governance ,Domestic Waste Collection,WWC00,External Contractor & Operator,0742,1179.80,Container Services UK Limited,100811,21/11/2013,10194126
INSERTED DETAIL,Resources & Corporate Governance ,Domestic Waste Collection,WWC00,External Contractor & Operator,0742,1320.31,Container Services UK Limited,100811,28/11/2013,10194543
INSERTED DETAIL,Resources & Corporate Governance ,Street Cleansing,WSC00,Vehicle Repair and Maintenance,0200,455.26,Ford & Slater,100817,14/11/2013,10193565
INSERTED DETAIL,,Balance Sheet,BS,Car Leasing Scheme,9244,-462.18,Lex Autolease Ltd,100844,28/11/2013,10192659
INSERTED DETAIL,,Balance Sheet,BS,Car Leasing Scheme,9244,-961.10,Lex Autolease Ltd,100844,28/11/2013,10192983
INSERTED DETAIL,,Balance Sheet,BS,Car Leasing Scheme,9244,2724.96,Lex Autolease Ltd,100844,28/11/2013,10194351
INSERTED DETAIL,,Balance Sheet,BS,Car Leasing Scheme,9244,8652.71,Lex Autolease Ltd,100844,28/11/2013,10194592
INSERTED DETAIL,Resources & Corporate Governance ,Domestic Waste Collection,WWC00,Vehicle Repair and Maintenance,0200,1454.44,FAUN Zoeller (UK) Ltd,100871,07/11/2013,10193375
INSERTED DETAIL,Housing Revenue Account ,Maintenance of Open Spaces,MOS00,External Contractor & Operator,0742,123.27,Grandborough Parish Council,100889,14/11/2013,10193921
INSERTED DETAIL,Sustainable Environment ,Grass Cutting,PKS13,External Contractor & Operator,0742,1263.00,Grandborough Parish Council,100889,14/11/2013,10193921
INSERTED DETAIL,Resources & Corporate Governance ,Corporate Property Management,CPM00,Asset Management Expenses,0448,2037.50,Godfrey-Payton Chartered Surveyors,100937,14/11/2013,10193154
INSERTED DETAIL,Resources & Corporate Governance ,Grounds Maintenance,WGM00,Materials,0303,468.00,BHGS Ltd,100950,07/11/2013,10193333
INSERTED DETAIL,Resources & Corporate Governance ,Human Resources Centralised Services,RES31,Recruitment Expenses,0012,585.00,TMP (UK) LTD,100972,07/11/2013,10193603
INSERTED DETAIL,Resources & Corporate Governance ,Human Resources Centralised Services,RES31,Recruitment Expenses,0012,953.50,TMP (UK) LTD,100972,14/11/2013,10193604
INSERTED DETAIL,Resources & Corporate Governance ,Human Resources Centralised Services,RES31,Recruitment Expenses,0012,935.00,TMP (UK) LTD,100972,21/11/2013,10193913
INSERTED DETAIL,Resources & Corporate Governance ,Human Resources Centralised Services,RES31,Recruitment Expenses,0012,1937.52,TMP (UK) LTD,100972,28/11/2013,10194644
INSERTED DETAIL,Sustainable Environment,Crematorium,CRM00,Materials,0303,1250.00,James Coles & Sons (Nurseries) Ltd,101165,07/11/2013,10193596
INSERTED DETAIL,Resources & Corporate Governance ,Grounds Maintenance,WGM00,Materials,0303,2931.00,James Coles & Sons (Nurseries) Ltd,101165,28/11/2013,10194523
INSERTED DETAIL,Resources & Corporate Governance,Housing Maintenance,WHM00,External Contractor & Operator,0742,592.48,Clews Recycling Limited,101213,28/11/2013,10193473
INSERTED DETAIL,Resources & Corporate Governance ,Grounds Maintenance,WGM00,External Contractor & Operator,0742,7484.00,K A Hicks,101216,21/11/2013,10193751
INSERTED DETAIL,Sustainable Environment ,Parks,PKS00,External Contractor & Operator,0742,850.00,Lilbourne Turf Supplies,101225,28/11/2013,10194482
INSERTED DETAIL,Sustainable Environment ,Grass Cutting,PKS13,External Contractor & Operator,0742,567.00,Marton Parish Council,101285,14/11/2013,10193941
INSERTED DETAIL,Resources & Corporate Governance,Housing Maintenance,WHM00,Materials,0303,535.23,Melbros Ltd,101291,21/11/2013,10193691
INSERTED DETAIL,Resources & Corporate Governance,Housing Maintenance,WHM00,Materials,0303,545.45,Melbros Ltd,101291,14/11/2013,10193864
INSERTED DETAIL,Housing Revenue Account ,Unplanned Maintenance and Repair,UMR00,R&M External Contractors,0100,2591.00,Msm Environmental Services,101317,07/11/2013,10193510
INSERTED DETAIL,Economy Development & Culture,Visitor Centre,VSC00,Events Tickets - Zero Rated,1405,1417.92,National Express Ltd,101392,18/11/2013,10194160
INSERTED DETAIL,Capital Program ,Disabled Facilities Grant,REN01,Capital Grants,5014,930.00,Orbit Group Limited,101414,14/11/2013,10193555
INSERTED DETAIL,Resources & Corporate Governance ,Grounds Maintenance,WGM00,Vehicle Running Costs,0201,440.00,Post Office Ltd,101429,14/11/2013,10193920
INSERTED DETAIL,Resources & Corporate Governance ,Street Cleansing,WSC00,Vehicle Running Costs,0201,641.00,Post Office Ltd,101429,14/11/2013,10193920
INSERTED DETAIL,Resources & Corporate Governance ,Garage Internal,WVR01,Vehicle Running Costs,0201,220.00,Post Office Ltd,101429,14/11/2013,10193920
INSERTED DETAIL,Resources & Corporate Governance ,Domestic Waste Collection,WWC00,Vehicle Running Costs,0201,930.00,Post Office Ltd,101429,21/11/2013,10194380
INSERTED DETAIL,Sustainable Inclusive Communities,Sewage Disposal Plant,SDP00,R&M External Contractors,0100,520.28,PJT Pumping Services,101438,28/11/2013,10194474
INSERTED DETAIL,Sustainable Environment ,Parks,PKS00,External Contractor & Operator,0742,200.00,Post To Post Fencing,101490,21/11/2013,10194237
INSERTED DETAIL,,User Balance Sheet Cost Centre,BSU,Revenue Section Agreements,9865,225.00,Post To Post Fencing,101490,21/11/2013,10194237
INSERTED DETAIL,Capital Program ,Bathroom Modifications,HIS01,Capital Contract Payments,5000,1056.00,Reeds Plumbing & Heating Contractors Ltd,101504,07/11/2013,10193449
INSERTED DETAIL,Capital Program ,Bathroom Modifications,HIS01,Capital Contract Payments,5000,19100.00,Reeds Plumbing & Heating Contractors Ltd,101504,14/11/2013,10193872
INSERTED DETAIL,Capital Program ,Private Sector Renovation Loans,REN00,Capital Contract Payments,5000,4056.00,Reeds Plumbing & Heating Contractors Ltd,101504,28/11/2013,10194439
INSERTED DETAIL,Capital Program ,Bathroom Modifications,HIS01,Capital Contract Payments,5000,4426.00,Reeds Plumbing & Heating Contractors Ltd,101504,21/11/2013,10194454
INSERTED DETAIL,Sustainable Environment ,Market,MKT00,BIDS levy,0145,2268.20,Rugby Borough Council,101516,07/11/2013,10193753
INSERTED DETAIL,Economy Development & Culture,Car Parks General,CPK01,BIDS levy,0145,2268.20,Rugby Borough Council,101516,07/11/2013,10193755
INSERTED DETAIL,Economy Development & Culture,Car Parks General,CPK01,BIDS levy,0145,2268.20,Rugby Borough Council,101516,07/11/2013,10193756
INSERTED DETAIL,Economy Development & Culture,Car Parks General,CPK01,BIDS levy,0145,1197.12,Rugby Borough Council,101516,07/11/2013,10193757
INSERTED DETAIL,Economy Development & Culture,The Benn Hall,BHL00,BIDS levy,0145,1669.64,Rugby Borough Council,101516,14/11/2013,10193760
INSERTED DETAIL,Economy Development & Culture,Art Gallery and Museum,AGM00,BIDS levy,0145,9085.41,Rugby Borough Council,101516,21/11/2013,10193761
INSERTED DETAIL,Resources & Corporate Governance ,Town Hall,OFF00,BIDS levy,0145,9085.41,Rugby Borough Council,101516,21/11/2013,10193762
INSERTED DETAIL,Resources & Corporate Governance ,Town Hall,OFF00,BIDS levy,0145,3036.88,Rugby Borough Council,101516,21/11/2013,10193763
INSERTED DETAIL,Resources & Corporate Governance ,Electoral Registration,ERG00,Postage & Distribution,0370,1263.36,Royal Mail,101554,07/11/2013,10193458
INSERTED DETAIL,Resources & Corporate Governance ,Borough Elections,ELC00,Postage & Distribution,0370,1088.73,Royal Mail,101554,07/11/2013,10193561
INSERTED DETAIL,Resources & Corporate Governance ,Electoral Registration,ERG00,Postage & Distribution,0370,1117.92,Royal Mail,101554,21/11/2013,10194086
INSERTED DETAIL,Resources & Corporate Governance,Corporate Property Central Utilities,CPA02,Water Services,0143,813.08,Severn Trent Water Ltd,101610,07/11/2013,10193452
INSERTED DETAIL,Capital Program ,Disabled Facilities Grant,REN01,Capital Grants,5014,4375.00,Stannah Stairlifts Ltd,101623,14/11/2013,10193793
INSERTED DETAIL,Capital Program ,Disabled Adaptations,HCR01,Capital Contract Payments,5000,584.00,Stannah Stairlifts Ltd,101623,21/11/2013,10194391
INSERTED DETAIL,Capital Program ,Disabled Adaptations,HCR01,Capital Contract Payments,5000,577.20,Steve Diston Contract Flooring,101668,21/11/2013,10194025
INSERTED DETAIL,Resources & Corporate Governance,Housing Maintenance,WHM00,Materials,0303,855.04,Travis Perkins Trading Co Ltd,101732,21/11/2013,10192349
INSERTED DETAIL,Resources & Corporate Governance,Housing Maintenance,WHM00,Materials,0303,2525.16,Travis Perkins Trading Co Ltd,101732,21/11/2013,10192608
INSERTED DETAIL,Resources & Corporate Governance,Housing Maintenance,WHM00,Materials,0303,2727.49,Travis Perkins Trading Co Ltd,101732,28/11/2013,10192960
INSERTED DETAIL,Resources & Corporate Governance,Housing Maintenance,WHM00,Contract Hire,0220,584.20,Travis Perkins Trading Co Ltd,101732,28/11/2013,10193786
INSERTED DETAIL,Resources & Corporate Governance ,Street Cleansing,WSC00,Vehicle Running Costs,0201,89.20,HI-Q Motorway,101736,14/11/2013,10193421
INSERTED DETAIL,Resources & Corporate Governance ,Domestic Waste Collection,WWC00,Vehicle Running Costs,0201,282.66,HI-Q Motorway,101736,14/11/2013,10193421
INSERTED DETAIL,Resources & Corporate Governance ,Trade Waste Collection,WWC01,Vehicle Running Costs,0201,196.00,HI-Q Motorway,101736,14/11/2013,10193421
INSERTED DETAIL,Resources & Corporate Governance ,Domestic Waste Collection,WWC00,Vehicle Running Costs,0201,527.32,HI-Q Motorway,101736,14/11/2013,10193427
INSERTED DETAIL,Resources & Corporate Governance ,Grounds Maintenance,WGM00,Vehicle Running Costs,0201,77.00,HI-Q Motorway,101736,21/11/2013,10193994
INSERTED DETAIL,Resources & Corporate Governance ,Street Cleansing,WSC00,Vehicle Running Costs,0201,77.00,HI-Q Motorway,101736,21/11/2013,10193994
INSERTED DETAIL,Resources & Corporate Governance ,Domestic Waste Collection,WWC00,Vehicle Running Costs,0201,541.57,HI-Q Motorway,101736,21/11/2013,10193994
INSERTED DETAIL,Resources & Corporate Governance ,Trade Waste Collection,WWC01,Vehicle Running Costs,0201,828.00,HI-Q Motorway,101736,28/11/2013,10194650
INSERTED DETAIL,Resources & Corporate Governance,Housing Maintenance,WHM00,Vehicle Running Costs,0201,64.52,HI-Q Motorway,101736,28/11/2013,10194651
INSERTED DETAIL,Resources & Corporate Governance ,Domestic Waste Collection,WWC00,Vehicle Running Costs,0201,584.61,HI-Q Motorway,101736,28/11/2013,10194651
INSERTED DETAIL,Housing Revenue Account ,Sheltered Housing,AGP00,Telephone Expenses,0371,384.42,Vodafone Corporate Ltd,101831,07/11/2013,10189150
INSERTED DETAIL,Economy Development & Culture,Building Control Services,BCS00,Telephone Expenses,0371,0.19,Vodafone Corporate Ltd,101831,07/11/2013,10189150
INSERTED DETAIL,Economy Development & Culture,Building Control Services Non-Fee Earning Account,BCS01,Telephone Expenses,0371,0.12,Vodafone Corporate Ltd,101831,07/11/2013,10189150
INSERTED DETAIL,Economy Development & Culture,Building Regulation Fee Earning Account,BCS99,Telephone Expenses,0371,5.86,Vodafone Corporate Ltd,101831,07/11/2013,10189150
INSERTED DETAIL,Sustainable Environment ,East European Violence Project,CAD32,Telephone Expenses,0371,6.00,Vodafone Corporate Ltd,101831,07/11/2013,10189150
INSERTED DETAIL,Housing Revenue Account ,Control Centre (HRA),CCE00,Telephone Expenses,0371,36.44,Vodafone Corporate Ltd,101831,07/11/2013,10189150
INSERTED DETAIL,Resources & Corporate Governance ,Council Tax and NNDR Collection,CTX01,Telephone Expenses,0371,8.56,Vodafone Corporate Ltd,101831,07/11/2013,10189150
INSERTED DETAIL,Sustainable Inclusive Communities,Housing Options Team,HOT00,Telephone Expenses,0371,51.04,Vodafone Corporate Ltd,101831,07/11/2013,10189150
INSERTED DETAIL,Housing Revenue Account ,Supervision and Management General,MAN00,Telephone Expenses,0371,314.73,Vodafone Corporate Ltd,101831,07/11/2013,10189150
INSERTED DETAIL,Housing Revenue Account ,Estate Management,MAN22,Telephone Expenses,0371,54.00,Vodafone Corporate Ltd,101831,07/11/2013,10189150
INSERTED DETAIL,Housing Revenue Account ,Multi-Storey Flats,MSF00,Telephone Expenses,0371,12.42,Vodafone Corporate Ltd,101831,07/11/2013,10189150
INSERTED DETAIL,Economy Development & Culture,Car Parks General,CPK01,Telephone Expenses,0371,-602.95,Vodafone Corporate Ltd,101831,07/11/2013,10189572
INSERTED DETAIL,Economy Development & Culture,Decrim. of Car Parking on street parking,DPE02,Telephone Expenses,0371,-2411.81,Vodafone Corporate Ltd,101831,07/11/2013,10189572
INSERTED DETAIL,Housing Revenue Account ,Sheltered Housing,AGP00,Telephone Expenses,0371,334.97,Vodafone Corporate Ltd,101831,07/11/2013,10193268
INSERTED DETAIL,Economy Development & Culture,Building Control Services,BCS00,Telephone Expenses,0371,0.19,Vodafone Corporate Ltd,101831,07/11/2013,10193268
INSERTED DETAIL,Economy Development & Culture,Building Control Services Non-Fee Earning Account,BCS01,Telephone Expenses,0371,0.13,Vodafone Corporate Ltd,101831,07/11/2013,10193268
INSERTED DETAIL,Economy Development & Culture,Building Regulation Fee Earning Account,BCS99,Telephone Expenses,0371,6.07,Vodafone Corporate Ltd,101831,07/11/2013,10193268
INSERTED DETAIL,Sustainable Environment ,East European Violence Project,CAD32,Telephone Expenses,0371,-1.43,Vodafone Corporate Ltd,101831,07/11/2013,10193268
INSERTED DETAIL,Housing Revenue Account ,Control Centre (HRA),CCE00,Telephone Expenses,0371,13.86,Vodafone Corporate Ltd,101831,07/11/2013,10193268
INSERTED DETAIL,Resources & Corporate Governance ,Council Tax and NNDR Collection,CTX01,Telephone Expenses,0371,6.55,Vodafone Corporate Ltd,101831,07/11/2013,10193268
INSERTED DETAIL,Sustainable Inclusive Communities,Housing Options Team,HOT00,Telephone Expenses,0371,48.10,Vodafone Corporate Ltd,101831,07/11/2013,10193268
INSERTED DETAIL,Housing Revenue Account ,Supervision and Management General,MAN00,Telephone Expenses,0371,266.26,Vodafone Corporate Ltd,101831,07/11/2013,10193268
INSERTED DETAIL,Housing Revenue Account ,Estate Management,MAN22,Telephone Expenses,0371,54.00,Vodafone Corporate Ltd,101831,07/11/2013,10193268
INSERTED DETAIL,Housing Revenue Account ,Multi-Storey Flats,MSF00,Telephone Expenses,0371,8.46,Vodafone Corporate Ltd,101831,07/11/2013,10193268
INSERTED DETAIL,Resources & Corporate Governance ,General Administration,WAD00,Training fees,0011,1134.00,Warwickshire College,101882,07/11/2013,10193486
INSERTED DETAIL,Resources & Corporate Governance ,General Administration,WAD00,Training fees,0011,1850.00,Warwickshire College,101882,21/11/2013,10193826
INSERTED DETAIL,Resources & Corporate Governance ,General Administration,WAD00,Training fees,0011,6760.00,Warwickshire College,101882,21/11/2013,10194087
INSERTED DETAIL,Resources & Corporate Governance ,General Administration,WAD00,Training fees,0011,2286.00,Warwickshire College,101882,21/11/2013,10194088
INSERTED DETAIL,Resources & Corporate Governance ,Warwickshire On Line Partnership,JCC10,Payments to Other Local Authorities,0710,5221.17,Warwickshire County Council,101893,14/11/2013,10193741
INSERTED DETAIL,Economy Development & Culture,Decrim. of Car Parking on street parking,DPE02,Payments to Other Local Authorities,0710,139189.00,Warwickshire County Council,101893,14/11/2013,10193887
INSERTED DETAIL,Economy Development & Culture,Planning General/Income,PLN00,Consultancy Costs,0740,2680.00,Warwickshire County Council,101893,28/11/2013,10194494
INSERTED DETAIL,Economy Development & Culture,Planning General/Income,PLN00,Consultancy Costs,0740,2700.00,Warwickshire County Council,101893,28/11/2013,10194621
INSERTED DETAIL,Resources & Corporate Governance,Housing Maintenance,WHM00,External Contractor & Operator,0742,1520.00,Darren Wilson Roofing Ltd,101911,07/11/2013,10192319
INSERTED DETAIL,Housing Revenue Account ,Unplanned Maintenance and Repair,UMR00,R&M External Contractors,0100,660.36,Adroit Services Ltd,101939,07/11/2013,10193445
INSERTED DETAIL,Capital Program ,Electric to Gas Conversions,HIM04,Capital Contract Payments,5000,563.79,Adroit Services Ltd,101939,07/11/2013,10193445
INSERTED DETAIL,Housing Revenue Account ,Unplanned Maintenance and Repair,UMR00,R&M External Contractors,0100,876.18,Adroit Services Ltd,101939,07/11/2013,10193514
INSERTED DETAIL,Capital Program ,Electric to Gas Conversions,HIM04,Capital Contract Payments,5000,35.00,Adroit Services Ltd,101939,07/11/2013,10193514
INSERTED DETAIL,Capital Program ,Electric to Gas Conversions,HIM04,Capital Contract Payments,5000,5772.76,Adroit Services Ltd,101939,14/11/2013,10193531
INSERTED DETAIL,Capital Program ,Electric to Gas Conversions,HIM04,Capital Contract Payments,5000,6209.14,Adroit Services Ltd,101939,14/11/2013,10193898
INSERTED DETAIL,Capital Program ,Electric to Gas Conversions,HIM04,Capital Contract Payments,5000,5772.76,Adroit Services Ltd,101939,21/11/2013,10194162
INSERTED DETAIL,Capital Program ,Electric to Gas Conversions,HIM04,Capital Contract Payments,5000,5336.38,Adroit Services Ltd,101939,28/11/2013,10194541
INSERTED DETAIL,Resources & Corporate Governance ,Grounds Maintenance,WGM00,Contract Hire,0220,509.04,TJS Self Drive Rugby,107992,07/11/2013,10193318
INSERTED DETAIL,Economy Development & Culture,Art Gallery and Museum,AGM00,Development Activities,0450,2000.00,Live & Local Ltd,108138,14/11/2013,10194002
INSERTED DETAIL,Resources & Corporate Governance ,Central Telephone Service,TEL00,Telephone Expenses,0371,976.17,British Telecommunications PLC,108425,28/11/2013,10194613
INSERTED DETAIL,Economy Development & Culture,Planning General/Income,PLN00,External Legal Costs,0741,700.00,SATNAM SINGH CHOONGH,109271,21/11/2013,10194205
INSERTED DETAIL,Resources & Corporate Governance ,Garage Internal,WVR01,Materials,0303,30380.00,Watson Petroleum,110361,14/11/2013,10194075
INSERTED DETAIL,Resources & Corporate Governance,Corporate Property R&M,CPA01,R&M External Contractors,0100,2954.26,Croxford Electrical Ltd,110451,07/11/2013,10193343
INSERTED DETAIL,Economy Development & Culture,The Benn Hall,BHL00,Contract Catering,0330,500.00,The Chefs Kitchen (UK) Limited,111682,21/11/2013,10194424
INSERTED DETAIL,Resources & Corporate Governance ,Maintenance of Customer Services Systems,CIS21,Software Purchase,0373,5430.49,Experian Ltd,112302,07/11/2013,10193438
INSERTED DETAIL,Resources & Corporate Governance ,Maintenance of Customer Services Systems,CIS21,Software Maintenance,0374,2790.98,Civica UK Ltd,112724,28/11/2013,10194485
INSERTED DETAIL,Resources & Corporate Governance ,Maintenance of Customer Services Systems,CIS21,Software Maintenance,0374,1505.33,Civica UK Ltd,112724,28/11/2013,10194490
INSERTED DETAIL,Resources & Corporate Governance ,Domestic Waste Collection,WWC00,Agency Staff,0003,508.37,Extra Personnel Limited,112996,14/11/2013,10193959
INSERTED DETAIL,Resources & Corporate Governance ,Domestic Waste Collection,WWC00,Agency Staff,0003,598.77,Extra Personnel Limited,112996,14/11/2013,10193979
INSERTED DETAIL,Resources & Corporate Governance ,Domestic Waste Collection,WWC00,Agency Staff,0003,508.37,Extra Personnel Limited,112996,28/11/2013,10194642
INSERTED DETAIL,Resources & Corporate Governance ,Domestic Waste Collection,WWC00,Agency Staff,0003,514.80,Extra Personnel Limited,112996,28/11/2013,10194643
INSERTED DETAIL,Housing Revenue Account ,Unplanned Maintenance and Repair,UMR00,R&M External Contractors,0100,1291.30,Temple Lifts Ltd,114738,21/11/2013,10194159
INSERTED DETAIL,Sustainable Inclusive Communities,Housing Options Team,HOT00,Rents,0140,667.53,Diamond House Hotel,115070,21/11/2013,10193585
INSERTED DETAIL,Sustainable Inclusive Communities,Housing Options Team,HOT00,Rents,0140,741.70,Diamond House Hotel,115070,21/11/2013,10194092
INSERTED DETAIL,Sustainable Inclusive Communities,Housing Options Team,HOT00,Rents,0140,490.00,Diamond House Hotel,115070,28/11/2013,10194425
INSERTED DETAIL,Sustainable Inclusive Communities,Housing Options Team,HOT00,Rents,0140,519.19,Diamond House Hotel,115070,28/11/2013,10194446
INSERTED DETAIL,Resources & Corporate Governance ,Grounds Maintenance,WGM00,Contract Hire,0220,2600.00,Townsend Vehicle Hire,115165,07/11/2013,10193609
INSERTED DETAIL,Resources & Corporate Governance,Housing Maintenance,WHM00,Contract Hire,0220,150.00,Townsend Vehicle Hire,115165,07/11/2013,10193609
INSERTED DETAIL,Resources & Corporate Governance ,Civic Responsibilities,CIV00,Other Miscellaneous Expenses,0444,510.90,Toye Kenning & Spencer Ltd,115753,14/11/2013,10192828
INSERTED DETAIL,Resources & Corporate Governance ,Grounds Maintenance,WGM00,Vehicle Repair and Maintenance,0200,473.09,T H White Ltd,116311,21/11/2013,10193815
INSERTED DETAIL,Resources & Corporate Governance,Corporate Property R&M,CPA01,R&M External Contractors,0100,1390.00,Chillaire Ltd,117596,28/11/2013,10194371
INSERTED DETAIL,Resources & Corporate Governance,Corporate Property Central Utilities,CPA02,Electricity,0130,404.98,Southern Electric,118976,21/11/2013,10193928
INSERTED DETAIL,Resources & Corporate Governance ,WSU Depot,WDP00,Electricity,0130,333.00,Southern Electric,118976,21/11/2013,10193928
INSERTED DETAIL,Resources & Corporate Governance,Corporate Property Central Utilities,CPA02,Electricity,0130,8846.45,Southern Electric,118976,21/11/2013,10194089
INSERTED DETAIL,Resources & Corporate Governance ,Toilet Cleaning,WBC01,Agency Staff,0003,598.20,G-Staff Ltd,120173,07/11/2013,10193446
INSERTED DETAIL,Resources & Corporate Governance ,Street Cleansing,WSC00,Agency Staff,0003,118.90,G-Staff Ltd,120173,07/11/2013,10193446
INSERTED DETAIL,Resources & Corporate Governance ,Domestic Waste Collection,WWC00,Agency Staff,0003,1580.71,G-Staff Ltd,120173,07/11/2013,10193446
INSERTED DETAIL,Resources & Corporate Governance ,Toilet Cleaning,WBC01,Agency Staff,0003,748.60,G-Staff Ltd,120173,21/11/2013,10194153
INSERTED DETAIL,Resources & Corporate Governance ,Domestic Waste Collection,WWC00,Agency Staff,0003,1217.51,G-Staff Ltd,120173,21/11/2013,10194153
INSERTED DETAIL,Resources & Corporate Governance ,Domestic Waste Collection,WWC00,Agency Staff,0003,1026.73,G-Staff Ltd,120173,28/11/2013,10194537
INSERTED DETAIL,Resources & Corporate Governance ,Customer and Information Strategy,CIS10,Software Maintenance,0374,6300.00,Jadu Ltd,120407,07/11/2013,10193104
INSERTED DETAIL,Resources & Corporate Governance,Housing Maintenance,WHM00,External Contractor & Operator,0742,600.00,Rugby Roofing,121274,28/11/2013,10194180
INSERTED DETAIL,Resources & Corporate Governance ,"Communications, Consultation and Information Team",BTR20,Publicity & Marketing,0377,525.00,Janus Kreative,121748,07/11/2013,10193404
INSERTED DETAIL,Housing Revenue Account ,Supervision and Management General,MAN00,Subscriptions,0421,650.00,HQN Limited,122890,07/11/2013,10193048
INSERTED DETAIL,Housing Revenue Account ,Maintenance of Open Spaces,MOS00,External Contractor & Operator,0742,453.55,Brinklow Quarry,122921,14/11/2013,10192314
INSERTED DETAIL,Resources & Corporate Governance ,Highways,WHG00,External Contractor & Operator,0742,69.82,Brinklow Quarry,122921,14/11/2013,10192314
INSERTED DETAIL,Housing Revenue Account ,Maintenance of Open Spaces,MOS00,External Contractor & Operator,0742,527.89,Brinklow Quarry,122921,14/11/2013,10193635
INSERTED DETAIL,Resources & Corporate Governance ,Highways,WHG00,External Contractor & Operator,0742,26.11,Brinklow Quarry,122921,14/11/2013,10193635
INSERTED DETAIL,Resources & Corporate Governance ,Central Telephone Service,TEL00,Telephone Expenses,0371,1240.41,Cable & Wireless/T/A Vodafone,123224,14/11/2013,10193794
INSERTED DETAIL,Resources & Corporate Governance ,Domestic Waste Collection,WWC00,Materials,0303,14449.68,SSI Schaefer Ltd,123543,14/11/2013,10193548
INSERTED DETAIL,Resources & Corporate Governance ,Garage Internal,WVR01,Materials,0303,456.19,Shell U.K. Oil Products Limited,125672,14/11/2013,10193750
INSERTED DETAIL,Sustainable Environment,Regulatory Services,REG00,Software/Equipment Licences,0379,1028.28,Airwave Solutions Limited,126436,21/11/2013,10194001
INSERTED DETAIL,Resources & Corporate Governance,Housing Maintenance,WHM00,External Contractor & Operator,0742,555.00,M P Hudson & Son,129334,14/11/2013,10194024
INSERTED DETAIL,Resources & Corporate Governance,Housing Maintenance,WHM00,External Contractor & Operator,0742,532.50,M P Hudson & Son,129334,21/11/2013,10194379
INSERTED DETAIL,Economy Development & Culture,Economic Development General,ECD00,Development Activities,0450,5250.00,Rugby First Limited - Town Centre,130214,14/11/2013,10193949
INSERTED DETAIL,Economy Development & Culture,Economic Development General,ECD00,Development Activities,0450,2000.00,Rugby First Limited - Town Centre,130214,14/11/2013,10193950
INSERTED DETAIL,Resources & Corporate Governance ,Grounds Maintenance,WGM00,Materials,0303,1160.00,J Parker Dutch Bulbs (Wholesale) Ltd,131220,28/11/2013,10194399
INSERTED DETAIL,Sustainable Environment ,Parks,PKS00,External Contractor & Operator,0742,730.00,I D Welding & Fabrications,131407,07/11/2013,10193403
INSERTED DETAIL,Sustainable Environment ,Parks,PKS00,Maintenance of Equipment,0301,1067.00,I D Welding & Fabrications,131407,14/11/2013,10193711
INSERTED DETAIL,Sustainable Environment ,Parks,PKS00,External Contractor & Operator,0742,480.00,I D Welding & Fabrications,131407,28/11/2013,10194407
INSERTED DETAIL,Economy Development & Culture,Decrim. of Car Parking on street parking,DPE02,Cash Collection,0744,728.84,Jade Security Services Ltd,131711,21/11/2013,10194028
INSERTED DETAIL,Economy Development & Culture,Car Parks General,CPK01,Cash Collection,0744,991.88,Jade Security Services Ltd,131711,21/11/2013,10194030
INSERTED DETAIL,Capital Program ,Disabled Facilities Grant,REN01,Capital Grants,5014,10300.00,D K Builders,131946,14/11/2013,10193232
INSERTED DETAIL,Resources & Corporate Governance,Housing Maintenance,WHM00,External Contractor & Operator,0742,832.00,Homecare Decorating,133884,14/11/2013,10193164
INSERTED DETAIL,Resources & Corporate Governance,Housing Maintenance,WHM00,External Contractor & Operator,0742,2928.00,Homecare Decorating,133884,28/11/2013,10193167
INSERTED DETAIL,Resources & Corporate Governance,Housing Maintenance,WHM00,External Contractor & Operator,0742,1285.00,Homecare Decorating,133884,21/11/2013,10193617
INSERTED DETAIL,Resources & Corporate Governance,Housing Maintenance,WHM00,External Contractor & Operator,0742,498.00,Homecare Decorating,133884,14/11/2013,10193650
INSERTED DETAIL,Resources & Corporate Governance,Housing Maintenance,WHM00,External Contractor & Operator,0742,1054.00,Homecare Decorating,133884,21/11/2013,10194169
INSERTED DETAIL,Resources & Corporate Governance,Housing Maintenance,WHM00,External Contractor & Operator,0742,538.00,Homecare Decorating,133884,28/11/2013,10194170
INSERTED DETAIL,Resources & Corporate Governance,Housing Maintenance,WHM00,External Contractor & Operator,0742,931.00,Homecare Decorating,133884,21/11/2013,10194172
INSERTED DETAIL,Housing Revenue Account ,Dickinson Court AP,AGP03,New Equipment,0300,902.85,Sunfish Services Ltd,133886,07/11/2013,10193511
INSERTED DETAIL,Resources & Corporate Governance,Corporate Property R&M,CPA01,R&M External Contractors,0100,682.00,Sunfish Services Ltd,133886,28/11/2013,10194427
INSERTED DETAIL,Resources & Corporate Governance ,Human Resources Centralised Services,RES31,External Legal Costs,0741,1312.50,Sean O'Brien,135150,14/11/2013,10192206
INSERTED DETAIL,Resources & Corporate Governance ,Human Resources Centralised Services,RES31,External Legal Costs,0741,762.50,Sean O'Brien,135150,21/11/2013,10194369
INSERTED DETAIL,Sustainable Inclusive Communities,Housing Strategy & Enabling,HSE00,Agency Staff,0003,795.50,Morgan Hunt UK Ltd,136143,21/11/2013,10194401
INSERTED DETAIL,Resources & Corporate Governance ,Council Tax and NNDR Collection,CTX01,External Legal Costs,0741,768.00,Summers Nigh Law,136330,14/11/2013,10193935
INSERTED DETAIL,Resources & Corporate Governance ,Council Tax and NNDR Collection,CTX01,External Legal Costs,0741,718.00,Summers Nigh Law,136330,28/11/2013,10194590
INSERTED DETAIL,Resources & Corporate Governance ,Borough Elections,ELC00,Printing poll cards,0343,630.00,Smith & Ouzman Ltd,138682,21/11/2013,10193885
INSERTED DETAIL,Resources & Corporate Governance ,Electoral Registration,ERG00,Printing poll cards,0343,5580.00,Smith & Ouzman Ltd,138682,28/11/2013,10194492
INSERTED DETAIL,Housing Revenue Account ,Unplanned Maintenance and Repair,UMR00,R&M External Contractors,0100,95.00,Rider Levett Bucknall UK Ltd,139918,21/11/2013,10194452
INSERTED DETAIL,Housing Revenue Account ,Asbestos Surveys,UMR05,R&M External Contractors,0100,8580.00,Rider Levett Bucknall UK Ltd,139918,21/11/2013,10194452
INSERTED DETAIL,Capital Program ,Kitchen Modifications,HIK10,Capital Contract Payments,5000,130.00,Rider Levett Bucknall UK Ltd,139918,21/11/2013,10194452
INSERTED DETAIL,Resources & Corporate Governance ,Grounds Maintenance,WGM00,External Contractor & Operator,0742,650.00,D J Whitlock Plant Hire,140156,07/11/2013,10193377
INSERTED DETAIL,Sustainable Environment ,Parks,PKS00,New Equipment,0300,4150.00,Park Leisure Ltd,141165,07/11/2013,10193376
INSERTED DETAIL,Resources & Corporate Governance ,Customer and Information Strategy,CIS10,Telephone Expenses,0371,750.62,Zen Internet Ltd,141612,21/11/2013,10194310
INSERTED DETAIL,Resources & Corporate Governance ,Council Tax and NNDR Collection,CTX01,Telephone Expenses,0371,21.27,Zen Internet Ltd,141612,21/11/2013,10194310
INSERTED DETAIL,Resources & Corporate Governance ,General Administration,WAD00,Subscriptions,0421,1500.00,Cadassist Ltd,141618,21/11/2013,10194143
INSERTED DETAIL,Resources & Corporate Governance,Corporate Property R&M,CPA01,R&M External Contractors,0100,550.00,Healthmatic Limited,143256,28/11/2013,10194326
INSERTED DETAIL,Resources & Corporate Governance ,Garage Internal,WVR01,Materials,0303,697.04,FST,144461,21/11/2013,10194152
INSERTED DETAIL,Economy Development & Culture,Decrim. of Car Parking on street parking,DPE02,Other Agencies,0734,1299.60,PATROL,144963,07/11/2013,10193535
INSERTED DETAIL,Housing Revenue Account ,Control Centre CCTV,CCE01,External Contractor & Operator,0742,15574.92,Securitas Security Personnel Ltd,145079,14/11/2013,10193883
INSERTED DETAIL,Housing Revenue Account ,Property Maintenance,MAN23,Agency Staff,0003,420.00,James Andrews Recruitment Solutions Ltd,145100,21/11/2013,10194132
INSERTED DETAIL,Housing Revenue Account ,Property Maintenance,MAN23,Agency Staff,0003,450.00,James Andrews Recruitment Solutions Ltd,145100,21/11/2013,10194133
INSERTED DETAIL,Housing Revenue Account ,Property Maintenance,MAN23,Agency Staff,0003,420.00,James Andrews Recruitment Solutions Ltd,145100,21/11/2013,10194459
INSERTED DETAIL,Resources & Corporate Governance ,Domestic Waste Collection,WWC00,Materials,0303,928.00,Odour & Dust Solutions Limited,145114,07/11/2013,10193639
INSERTED DETAIL,Resources & Corporate Governance ,General Administration,WAD00,Training fees,0011,1550.00,Keith Cook Training Services,145120,07/11/2013,10193499
INSERTED DETAIL,Resources & Corporate Governance ,Grounds Maintenance,WGM00,Agency Staff,0003,260.19,Blue Arrow Limited,145492,14/11/2013,10193557
INSERTED DETAIL,Resources & Corporate Governance,Housing Maintenance,WHM00,Agency Staff,0003,2427.66,Blue Arrow Limited,145492,14/11/2013,10193557
INSERTED DETAIL,Resources & Corporate Governance ,Street Cleansing,WSC00,Agency Staff,0003,844.62,Blue Arrow Limited,145492,14/11/2013,10193557
INSERTED DETAIL,Resources & Corporate Governance ,Domestic Waste Collection,WWC00,Agency Staff,0003,1814.04,Blue Arrow Limited,145492,14/11/2013,10193557
INSERTED DETAIL,Resources & Corporate Governance ,Trade Waste Collection,WWC01,Agency Staff,0003,504.45,Blue Arrow Limited,145492,14/11/2013,10193557
INSERTED DETAIL,Resources & Corporate Governance,Housing Maintenance,WHM00,Agency Staff,0003,1600.97,Blue Arrow Limited,145492,28/11/2013,10194649
INSERTED DETAIL,Resources & Corporate Governance ,Street Cleansing,WSC00,Agency Staff,0003,832.12,Blue Arrow Limited,145492,28/11/2013,10194649
INSERTED DETAIL,Resources & Corporate Governance ,Domestic Waste Collection,WWC00,Agency Staff,0003,943.96,Blue Arrow Limited,145492,28/11/2013,10194649
INSERTED DETAIL,Resources & Corporate Governance ,Trade Waste Collection,WWC01,Agency Staff,0003,87.20,Blue Arrow Limited,145492,28/11/2013,10194649
INSERTED DETAIL,Resources & Corporate Governance,Housing Maintenance,WHM00,Materials,0303,464.99,Midland Rock Leicester Ltd,145830,07/11/2013,10193114
INSERTED DETAIL,Resources & Corporate Governance ,Customer and Information Strategy,CIS10,Other Agencies,0734,2100.00,Symbiosis iMedia Systems Ltd,145845,07/11/2013,10191492
INSERTED DETAIL,Sustainable Environment ,Crime and Disorder Activities,CAD00,Other Miscellaneous Expenses,0444,7500.00,Futures Unlocked,145956,21/11/2013,10194419
INSERTED DETAIL,Sustainable Inclusive Communities,Housing Options Team,HOT00,Training fees,0011,820.60,G Wardle,145958,21/11/2013,10193736
INSERTED DETAIL,Resources & Corporate Governance ,General Administration,WAD00,Training fees,0011,1378.00,SB Asbestos Management Ltd,146090,21/11/2013,10194248
INSERTED DETAIL,,Balance Sheet,BS,Car Loan Scheme,9261,4200.00,Evans Halshaw,146370,27/11/2013,10194655
INSERTED DETAIL,Economy Development & Culture,Visitor Centre,VSC00,Other Miscellaneous Expenses,0444,5500.00,Unlimited Communications,146671,28/11/2013,10194221
INSERTED DETAIL,Sustainable Environment ,Parks,PKS00,R&M External Contractors,0100,495.00,UVS Sign & Design Ltd,146676,07/11/2013,10193708
INSERTED DETAIL,Resources & Corporate Governance,Housing Maintenance,WHM00,External Contractor & Operator,0742,460.00,Mick Brown Plastering,146699,14/11/2013,10193479
INSERTED DETAIL,Resources & Corporate Governance,Housing Maintenance,WHM00,External Contractor & Operator,0742,870.00,Mick Brown Plastering,146699,28/11/2013,10194036
INSERTED DETAIL,Resources & Corporate Governance,Housing Maintenance,WHM00,External Contractor & Operator,0742,720.00,Mick Brown Plastering,146699,28/11/2013,10194042
INSERTED DETAIL,Resources & Corporate Governance,Housing Maintenance,WHM00,External Contractor & Operator,0742,929.00,Mick Brown Plastering,146699,28/11/2013,10194049
INSERTED DETAIL,Carbon Management Plan,Carbon Management Plan,LCF01,Capital Contract Payments,5000,9500.00,Ecolight,146781,21/11/2013,10194076
INSERTED DETAIL,Resources & Corporate Governance,Corporate Property R&M,CPA01,R&M External Contractors,0100,850.00,Environmental Essentials Ltd,146842,21/11/2013,10194151
INSERTED DETAIL,Economy Development & Culture,Economic Development General,ECD00,Borough Local Plan,0452,1482.50,White Consultants,146903,14/11/2013,10192712
INSERTED DETAIL,Resources & Corporate Governance,Housing Maintenance,WHM00,External Contractor & Operator,0742,3284.70,Intelligent Disabled Solutions Ltd,147081,28/11/2013,10193135
INSERTED DETAIL,Resources & Corporate Governance,Housing Maintenance,WHM00,External Contractor & Operator,0742,3068.44,Intelligent Disabled Solutions Ltd,147081,28/11/2013,10193136
INSERTED DETAIL,Resources & Corporate Governance,Housing Maintenance,WHM00,External Contractor & Operator,0742,3260.00,Intelligent Disabled Solutions Ltd,147081,28/11/2013,10193191
INSERTED DETAIL,Resources & Corporate Governance,Housing Maintenance,WHM00,External Contractor & Operator,0742,3432.74,Intelligent Disabled Solutions Ltd,147081,28/11/2013,10193749
INSERTED DETAIL,Resources & Corporate Governance,Housing Maintenance,WHM00,External Contractor & Operator,0742,957.92,Intelligent Disabled Solutions Ltd,147081,28/11/2013,10193881
INSERTED DETAIL,Resources & Corporate Governance,Housing Maintenance,WHM00,External Contractor & Operator,0742,3149.15,Intelligent Disabled Solutions Ltd,147081,28/11/2013,10194222
INSERTED DETAIL,Resources & Corporate Governance ,Domestic Waste Collection,WWC00,External Contractor & Operator,0742,450.00,James Baxter Haulage Ltd,147159,07/11/2013,10193655
INSERTED DETAIL,Resources & Corporate Governance ,Domestic Waste Collection,WWC00,External Contractor & Operator,0742,600.00,James Baxter Haulage Ltd,147159,21/11/2013,10194130
INSERTED DETAIL,Resources & Corporate Governance ,Works Services Coders,WGM01,External Contractor & Operator,0742,1290.00,C H Electrical (Leics) Ltd,147209,28/11/2013,10194328
INSERTED DETAIL,Capital Program ,Vehicle Workshop Extension,VWE00,Capital Contract Payments,5000,600.00,C H Electrical (Leics) Ltd,147209,28/11/2013,10194329
INSERTED DETAIL,Resources & Corporate Governance ,WSU Depot,WDP00,External Contractor & Operator,0742,955.00,C H Electrical (Leics) Ltd,147209,28/11/2013,10194373
INSERTED DETAIL,Resources & Corporate Governance ,TREE WORKS,WGM01,Tools,0304,99.99,ECA Supplies (Coventry) Limited,147276,14/11/2013,10193706
INSERTED DETAIL,Resources & Corporate Governance,Housing Maintenance,WHM00,Tools,0304,399.96,ECA Supplies (Coventry) Limited,147276,14/11/2013,10193706
INSERTED DETAIL,Sustainable Environment ,Burglary,CAD03,Development Activities,0450,1000.00,Warwickshire Probation Trust,147331,07/11/2013,10193364
INSERTED DETAIL,Resources & Corporate Governance,Corporate Property R&M,CPA01,R&M External Contractors,0100,782.29,Arden Construction Ltd,147430,21/11/2013,10193884
INSERTED DETAIL,Resources & Corporate Governance,Corporate Property R&M,CPA01,R&M External Contractors,0100,423.79,Arden Construction Ltd,147430,21/11/2013,10193888
INSERTED DETAIL,Resources & Corporate Governance,Corporate Property R&M,CPA01,R&M External Contractors,0100,2978.62,Arden Construction Ltd,147430,21/11/2013,10194052
INSERTED DETAIL,Capital Program ,Kitchen Modifications,HIK10,Capital Contract Payments,5000,2593.29,Rixonway Kitchens Ltd,147446,21/11/2013,10192677
INSERTED DETAIL,Sustainable Environment ,Parks,PKS00,External Contractor & Operator,0742,5630.00,Gavin Jones (Midlands) Ltd,147569,14/11/2013,10193727
INSERTED DETAIL,Economy Development & Culture,Street Furniture,HIG01,Development Activities,0450,830.00,Real Christmas Trees Ltd,147662,21/11/2013,10194388
INSERTED DETAIL,Resources & Corporate Governance ,Grounds Maintenance,WGM00,Vehicle Repair and Maintenance,0200,790.25,Tallis Amos Group Limited,147758,28/11/2013,10193997
INSERTED DETAIL,Resources & Corporate Governance,Housing Maintenance,WHM00,External Contractor & Operator,0742,506.40,Coventry Garage Doors,147883,14/11/2013,10193070
INSERTED DETAIL,Economy Development & Culture,Grants and Subscriptions,LGS00,Grants To Voluntary Organisations,0720,1000.00,Rugby Christmas Cracker,147921,21/11/2013,10194181
INSERTED DETAIL,Capital Program ,Queen's Diamond Jubilee Leisure Centre Project,LEI03,Capital Contract Payments,5000,133197.17,Shepherd Construction Ltd,148014,21/11/2013,10194383
INSERTED DETAIL,Resources & Corporate Governance,Housing Maintenance,WHM00,External Contractor & Operator,0742,555.00,Dean Hudson,148035,14/11/2013,10194023
INSERTED DETAIL,Resources & Corporate Governance,Housing Maintenance,WHM00,External Contractor & Operator,0742,532.50,Dean Hudson,148035,21/11/2013,10194378
INSERTED DETAIL,Economy Development & Culture,Art Gallery and Museum,AGM00,Recruitment Expenses,0012,39.90,Team Prevent UK Ltd,148151,14/11/2013,10193593
INSERTED DETAIL,Sustainable Environment,Crematorium,CRM00,Recruitment Expenses,0012,19.95,Team Prevent UK Ltd,148151,14/11/2013,10193593
INSERTED DETAIL,Sustainable Inclusive Communities,Housing Strategy & Enabling,HSE00,Recruitment Expenses,0012,19.95,Team Prevent UK Ltd,148151,14/11/2013,10193593
INSERTED DETAIL,Economy Development & Culture,Planning General/Income,PLN00,Recruitment Expenses,0012,19.95,Team Prevent UK Ltd,148151,14/11/2013,10193593
INSERTED DETAIL,Resources & Corporate Governance ,Grounds Maintenance,WGM00,Recruitment Expenses,0012,19.95,Team Prevent UK Ltd,148151,14/11/2013,10193593
INSERTED DETAIL,Resources & Corporate Governance,Housing Maintenance,WHM00,Recruitment Expenses,0012,19.95,Team Prevent UK Ltd,148151,14/11/2013,10193593
INSERTED DETAIL,Economy Development & Culture,Art Gallery and Museum,AGM00,Employee wellbeing/Other employee expenses,0021,17.50,Team Prevent UK Ltd,148151,14/11/2013,10193593
INSERTED DETAIL,Sustainable Environment,Crematorium,CRM00,Employee wellbeing/Other employee expenses,0021,17.50,Team Prevent UK Ltd,148151,14/11/2013,10193593
INSERTED DETAIL,Sustainable Inclusive Communities,Housing Benefit Administration,HBA00,Employee wellbeing/Other employee expenses,0021,52.50,Team Prevent UK Ltd,148151,14/11/2013,10193593
INSERTED DETAIL,Economy Development & Culture,Planning General/Income,PLN00,Employee wellbeing/Other employee expenses,0021,17.50,Team Prevent UK Ltd,148151,14/11/2013,10193593
INSERTED DETAIL,Resources & Corporate Governance ,Toilet Cleaning,WBC01,Employee wellbeing/Other employee expenses,0021,85.00,Team Prevent UK Ltd,148151,14/11/2013,10193593
INSERTED DETAIL,Resources & Corporate Governance ,Grounds Maintenance,WGM00,Employee wellbeing/Other employee expenses,0021,45.00,Team Prevent UK Ltd,148151,14/11/2013,10193593
INSERTED DETAIL,Resources & Corporate Governance ,Caldecott Park Cafe,WGM02,Employee wellbeing/Other employee expenses,0021,17.50,Team Prevent UK Ltd,148151,14/11/2013,10193593
INSERTED DETAIL,Resources & Corporate Governance,Housing Maintenance,WHM00,Employee wellbeing/Other employee expenses,0021,35.00,Team Prevent UK Ltd,148151,14/11/2013,10193593
INSERTED DETAIL,Resources & Corporate Governance ,Street Cleansing,WSC00,Employee wellbeing/Other employee expenses,0021,195.00,Team Prevent UK Ltd,148151,14/11/2013,10193593
INSERTED DETAIL,Resources & Corporate Governance ,Domestic Waste Collection,WWC00,Employee wellbeing/Other employee expenses,0021,310.00,Team Prevent UK Ltd,148151,14/11/2013,10193593
INSERTED DETAIL,Sustainable Environment ,Violence,CAD01,Development Activities,0450,8000.00,Home Group Ltd (Stonham),148259,14/11/2013,10193042
INSERTED DETAIL,Sustainable Inclusive Communities,Sewage Disposal Plant,SDP00,R&M External Contractors,0100,1740.00,Suck'cess,148285,21/11/2013,10194006
INSERTED DETAIL,Sustainable Inclusive Communities,Sewage Disposal Plant,SDP00,External Contractor & Operator,0742,840.00,Suck'cess,148285,21/11/2013,10194353
INSERTED DETAIL,Capital Program ,Pettiver Crescent,PCH00,Capital Contract Payments,5000,1456.88,"Gotch, Saunders & Surridge LLP , t/a GSS Architecture",148432,07/11/2013,10193408
INSERTED DETAIL,Capital Program ,Pettiver Crescent,PCH00,Capital Contract Payments,5000,1599.37,"Gotch, Saunders & Surridge LLP , t/a GSS Architecture",148432,28/11/2013,10194698
INSERTED DETAIL,Sustainable Environment ,Parks,PKS00,External Contractor & Operator,0742,2435.00,Red Kite Network Limited,148744,28/11/2013,10194531
INSERTED DETAIL,Economy Development & Culture,Economic Development General,ECD00,Consultancy Costs,0740,4540.00,Deloitte,148797,28/11/2013,10194533
INSERTED DETAIL,Resources & Corporate Governance ,Domestic Waste Collection,WWC00,Vehicle Repair and Maintenance,0200,864.59,Vicary Plant Spares Limited,148824,21/11/2013,10194231
INSERTED DETAIL,Housing Revenue Account ,Gas Heating Systems,UMR01,R&M External Contractors,0100,866.92,Robert Heath Heating Ltd,148858,21/11/2013,10193779
INSERTED DETAIL,Housing Revenue Account ,Gas Heating Systems,UMR01,R&M External Contractors,0100,18180.00,Robert Heath Heating Ltd,148858,21/11/2013,10193868
INSERTED DETAIL,Capital Program ,Bathroom Modifications,HIS01,Capital Contract Payments,5000,900.00,Capita Property & Infrastructure Ltd,148946,07/11/2013,10193434
INSERTED DETAIL,Economy Development & Culture,The Benn Hall,BHL00,Purchases for Resale,0305,2456.70,Matthew Clark Wholesale Ltd,148975,14/11/2013,10193841
INSERTED DETAIL,Economy Development & Culture,The Benn Hall,BHL00,Purchases for Resale,0305,2251.81,Matthew Clark Wholesale Ltd,148975,21/11/2013,10194393
INSERTED DETAIL,Resources & Corporate Governance,Housing Maintenance,WHM00,External Contractor & Operator,0742,660.50,D & M Ball Carpets,149023,28/11/2013,10192776
INSERTED DETAIL,Resources & Corporate Governance,Housing Maintenance,WHM00,External Contractor & Operator,0742,798.00,D & M Ball Carpets,149023,07/11/2013,10193467
INSERTED DETAIL,Resources & Corporate Governance,Housing Maintenance,WHM00,External Contractor & Operator,0742,875.60,D & M Ball Carpets,149023,28/11/2013,10193790
INSERTED DETAIL,Resources & Corporate Governance,Housing Maintenance,WHM00,External Contractor & Operator,0742,500.00,PJR Services,149062,07/11/2013,10193606
INSERTED DETAIL,Resources & Corporate Governance,Housing Maintenance,WHM00,External Contractor & Operator,0742,500.00,PJR Services,149062,07/11/2013,10193607
INSERTED DETAIL,Resources & Corporate Governance,Housing Maintenance,WHM00,External Contractor & Operator,0742,500.00,PJR Services,149062,28/11/2013,10194398
INSERTED DETAIL,Resources & Corporate Governance,Housing Maintenance,WHM00,External Contractor & Operator,0742,500.00,PJR Services,149062,28/11/2013,10194617
INSERTED DETAIL,Resources & Corporate Governance ,Maintenance of Customer Services Systems,CIS21,Software Purchase,0373,15232.50,Methods,149097,14/11/2013,10193414
INSERTED DETAIL,Sustainable Environment ,Cemeteries General,CEM00,R&M External Contractors,0100,615.00,Memsafe Ltd,149133,21/11/2013,10194227
INSERTED DETAIL,Capital Program ,Cemetery Infrastructure Work,BUR05,Capital Contract Payments,5000,332.50,Memsafe Ltd,149133,21/11/2013,10194227
INSERTED DETAIL,Economy Development & Culture,AGM Exhibitions/Outreach,AGM02,Other Miscellaneous Expenses,0444,1454.73,Templar Freight Services,149142,14/11/2013,10194065
INSERTED DETAIL,Resources & Corporate Governance ,Town Hall,OFF00,Contract Cleaning,0170,4195.83,Superclean Services Wothorpe,149153,28/11/2013,10194662
INSERTED DETAIL,Resources & Corporate Governance ,WSU Depot,WDP00,Contract Cleaning,0170,395.83,Superclean Services Wothorpe,149153,28/11/2013,10194662
INSERTED DETAIL,Resources & Corporate Governance ,Grounds Maintenance,WGM00,Contract Cleaning,0170,200.00,Superclean Services Wothorpe,149153,28/11/2013,10194662
INSERTED DETAIL,Resources & Corporate Governance,Housing Maintenance,WHM00,External Contractor & Operator,0742,3497.00,Stormseal Roofing (Nationwide) Ltd,149226,28/11/2013,10192898
INSERTED DETAIL,Economy Development & Culture,Planning General/Income,PLN00,External Legal Costs,0741,700.00,Mr Jonathan Salmon,149244,07/11/2013,10193412
INSERTED DETAIL,Sustainable Environment ,Head of Environmental Services,ENV00,Training fees,0011,1495.00,OMS,149249,28/11/2013,10193190
INSERTED DETAIL,Capital Program ,Pettiver Crescent,PCH00,Capital Contract Payments,5000,158882.39,Wates Construction Ltd,149267,07/11/2013,10193516
INSERTED DETAIL,Resources & Corporate Governance ,TREE WORKS,WGM01,Contract Hire,0220,760.00,Facelift GB Ltd,149303,14/11/2013,10193432
INSERTED DETAIL,Resources & Corporate Governance ,Benn Hall ICT,CMP24,IT Capital Expenditure,5025,4329.45,Delta Computer Services,149319,14/11/2013,10192648
INSERTED DETAIL,Economy Development & Culture,Economic Development General,ECD00,Development Activities,0450,575.00,Heron Press UK Partnership,149321,14/11/2013,10193804
INSERTED DETAIL,Resources & Corporate Governance,Housing Maintenance,WHM00,External Contractor & Operator,0742,830.00,H G Leslie & Son,149335,28/11/2013,10194020
INSERTED DETAIL,Resources & Corporate Governance,Housing Maintenance,WHM00,External Contractor & Operator,0742,480.00,Sprint Industrial Supplies Ltd,149342,07/11/2013,10193095
INSERTED DETAIL,Resources & Corporate Governance ,Grounds Maintenance,WGM00,External Contractor & Operator,0742,800.00,Goroots Ltd,149366,21/11/2013,10194344
INSERTED DETAIL,Sustainable Inclusive Communities,Housing Benefit Administration,HBA00,Agency Staff,0003,3429.92,HBHC Synergy Limited,149373,07/11/2013,10193652
INSERTED DETAIL,Sustainable Inclusive Communities,Housing Strategy & Enabling,HSE00,Consultancy Costs,0740,1500.00,Hometrack Data Systems Ltd,149376,28/11/2013,10193740
INSERTED DETAIL,,Balance Sheet,BS,Car Loan Scheme,9261,4775.00,Hearsall Common Car Sales,149388,14/11/2013,10193978
INSERTED DETAIL,Economy Development & Culture,The Benn Hall,BHL00,Events Tickets - Standard Rated,1404,1220.40,Cecil Benjamin,149392,21/11/2013,10194189
INSERTED DETAIL,Economy Development & Culture,Street Furniture,HIG01,External Contractor & Operator,0742,989.00,Heaton Products Ltd,149395,28/11/2013,10194637
INSERTED DETAIL,Resources & Corporate Governance,Housing Maintenance,WHM00,Materials,0303,2356.06,iKoustic,149396,21/11/2013,10194307
INSERTED DETAIL,Economy Development & Culture,Economic Development General,ECD00,Consultancy Costs,0740,4750.00,Kitchen La Frenais Morgan,149403,28/11/2013,10194532
INSERTED DETAIL,Economy Development & Culture,The Benn Hall,BHL00,Subscriptions,0421,1900.00,Warwickshire County Council,149404,21/11/2013,10194386
INSERTED DETAIL,Resources & Corporate Governance,Housing Maintenance,WHM00,External Contractor & Operator,0742,950.00,CSC Forecourt Services Ltd,149405,28/11/2013,10194461
detail,Resources & Corporate Governance,Housing Maintenance,WHM00,External Contractor & Operator,0742,950.00,CSC Forecourt Services Ltd,149405,28/11/2013,10194462
,Resources & Corporate Governance ,Benn Hall ICT,CMP24,Capital Contract Payments,5000,600.00,Halland Forge Hotel,,11/11/2013,29895
,Economy Development & Culture,Development Activities,ECD00,Overseas payment,0450,3217.61,IRFB Services (Ireland),,12/11/2013,29738
,Sustainable Inclusive Communities,Housing Options Team,HOT00,Repossession Fund,0444,5000.00,Santander,,18/11/2013,29766
,,Balance Sheet,BS,Cov & Warks Pooling Fund,9476,1380109.00,Cov & Warks Pooling Fund,,18/11/2013,29765
,,Balance Sheet,BS,Business Rate Retention Scheme payment,9476,2118341.00,CLG,,19/11/2013,29781
,,Balance Sheet,BS,Business Rate Retention Scheme payment,9476,424665.00,WCC County Fund,,19/11/2013,29779
,Resources & Corporate Governance ,General Financial Services,GFS00,Payment Card Costs,0444,1234.28,Capita,,27/11/2013,29808
